lending/lending_fUSD_20241212
["ID","MTS","AMOUNT","RATE_DAILY","PERIOD"]
[345065948,1733970643706,-187.09951136,0.00011099,2]
[345065949,1733970643716,-531.11210084,0.00011099,2]
[345065950,1733970643726,-777.62,0.00011099,2]
[345065951,1733970643735,-777.62,0.00011099,2]
[345065952,1733970643745,-777.62,0.00011099,2]
[345065953,1733970643757,-500.0,0.00011099,2]
[345065954,1733970643768,-777.62,0.00011099,2]
[345065955,1733970643777,-500.0,0.00011099,2]
[345065956,1733970643787,-777.62,0.00011099,2]
[345065957,1733970643796,-500.0,0.00011099,2]
[345065958,1733970643809,-777.62,0.00011099,2]
[345065959,1733970643821,-500.0,0.00011099,2]
[345065960,1733970643831,-777.62,0.00011099,2]
[345065961,1733970643840,-500.0,0.00011099,2]
[345065962,1733970643849,-777.62,0.00011099,2]
[345065963,1733970643859,-500.0,0.00011099,2]
[345065964,1733970643868,-777.62,0.00011099,2]
[345065965,1733970643877,-500.0,0.00011099,2]
[345065966,1733970643890,-777.62,0.00011099,2]
[345065967,1733970643899,-590.94892048,0.00011099,2]
[345065968,1733970643908,-777.62,0.00011099,2]
[345065969,1733970643917,-777.62,0.00011099,2]
[345065970,1733970643925,-777.62,0.00011099,2]
[345065971,1733970643934,-777.62,0.00011099,2]
[345065972,1733970643942,-777.62,0.00011099,2]
[345065973,1733970643950,-777.62,0.00011099,2]
[345065974,1733970643962,-777.62,0.00011099,2]
[345065975,1733970643972,-777.62,0.00011099,2]
[345065976,1733970643981,-777.62,0.00011099,2]
[345065977,1733970643991,-777.62,0.00011099,2]
[345065978,1733970644000,-777.62,0.00011099,2]
[345065979,1733970644010,-777.62,0.00011099,2]
[345065980,1733970644019,-502.16811245,0.00011099,2]
[345065981,1733970644028,-777.77676042,0.00011099,2]
[345065982,1733970644038,-213.87348417,0.00011099,2]
[345065983,1733970644047,-500.0,0.00011099,2]
[345065984,1733970644057,-500.0,0.00011099,2]
[345065985,1733970644068,-495.5386896,0.00011099,2]
[345065986,1733970644078,-500.0,0.00011099,2]
[345065987,1733970644087,-500.0,0.00011099,2]
[345065988,1733970644096,-500.0,0.00011099,2]
[345065989,1733970644106,-434.29103961,0.00011099,2]
[345065990,1733970644116,-428.9669019,0.00011099,2]
[345065991,1733970644125,-500.0,0.00011099,2]
[345065992,1733970644135,-500.0,0.00011099,2]
[345065993,1733970644144,-500.0,0.00011099,2]
[345065994,1733970644153,-500.0,0.00011099,2]
[345065995,1733970644163,-500.0,0.00011099,2]
[345065996,1733970644172,-500.0,0.00011099,2]
[345065997,1733970644182,-500.0,0.00011099,2]
[345065998,1733970644192,-500.0,0.00011099,2]
[345065999,1733970644201,-500.0,0.00011099,2]
[345066000,1733970644211,-500.0,0.00011099,2]
[345066001,1733970644220,-500.0,0.00011099,2]
[345066002,1733970644229,-500.0,0.00011099,2]
[345066003,1733970644238,-500.0,0.00011099,2]
[345066004,1733970644248,-500.0,0.00011099,2]
[345066005,1733970644257,-500.0,0.00011099,2]
[345066006,1733970644267,-500.0,0.00011099,2]
[345066007,1733970644276,-500.0,0.00011099,2]
[345066008,1733970644286,-500.0,0.00011099,2]
[345066009,1733970644296,-500.0,0.00011099,2]
[345066010,1733970644305,-500.0,0.00011099,2]
[345066011,1733970644315,-500.0,0.00011099,2]
[345066012,1733970644327,-500.0,0.00011099,2]
[345066013,1733970644336,-500.0,0.00011099,2]
[345066014,1733970644345,-500.0,0.00011099,2]
[345066015,1733970644355,-500.0,0.00011099,2]
[345066016,1733970644364,-500.0,0.00011099,2]
[345066017,1733970644374,-226.08038498,0.00011099,2]
[345066018,1733970644383,-500.0,0.00011099,2]
[345066019,1733970644393,-500.0,0.00011099,2]
[345066020,1733970644402,-500.0,0.00011099,2]
[345066021,1733970644412,-500.0,0.00011099,2]
[345066022,1733970644421,-500.0,0.00011099,2]
[345066023,1733970644431,-500.0,0.00011099,2]
[345066024,1733970644441,-601.87122256,0.00011099,2]
[345066025,1733970644451,-500.0,0.00011099,2]
[345066026,1733970644460,-521.74821397,0.00011099,2]
[345066027,1733970644469,-500.0,0.00011099,2]
[345066028,1733970644479,-500.0,0.00011099,2]
[345066029,1733970644489,-500.0,0.00011099,2]
[345066030,1733970644498,-500.0,0.00011099,2]
[345066031,1733970644508,-500.0,0.00011099,2]
[345066032,1733970644517,-500.0,0.00011099,2]
[345066033,1733970644527,-500.0,0.00011099,2]
[345066034,1733970644536,-562.69839047,0.00011099,2]
[345066035,1733970644547,-773.82,0.00011099,2]
[345066036,1733970644556,-773.82,0.00011099,2]
[345066037,1733970644567,-773.82,0.00011099,2]
[345066038,1733970644576,-773.82,0.00011099,2]
[345066039,1733970644586,-773.82,0.00011099,2]
[345066040,1733970644595,-773.82,0.00011099,2]
[345066041,1733970644605,-773.82,0.00011099,2]
[345066042,1733970644615,-773.82,0.00011099,2]
[345066043,1733970644624,-773.82,0.00011099,2]
[345066044,1733970644634,-773.82,0.00011099,2]
[345066045,1733970644643,-773.82,0.00011099,2]
[345066046,1733970644652,-773.82,0.00011099,2]
[345066047,1733970644662,-773.82,0.00011099,2]
[345066048,1733970644671,-773.82,0.00011099,2]
[345066049,1733970644680,-773.82,0.00011099,2]
[345066050,1733970644690,-773.82,0.00011099,2]
[345066051,1733970644700,-773.82,0.00011099,2]
[345066052,1733970644710,-773.82,0.00011099,2]
[345066053,1733970644719,-773.82,0.00011099,2]
[345066054,1733970644729,-773.82,0.00011099,2]
[345066055,1733970644738,-773.82,0.00011099,2]
[345066056,1733970644747,-773.82,0.00011099,2]
[345066057,1733970644757,-774.01995675,0.00011099,2]
[345066058,1733970644766,-500.0,0.00011099,2]
[345066059,1733970644776,-500.0,0.00011099,2]
[345066060,1733970644786,-573.91735922,0.00011099,2]
[345066061,1733970644795,-603.65482699,0.00011099,2]
[345066062,1733970644804,-500.0,0.00011099,2]
[345066063,1733970644814,-500.0,0.00011099,2]
[345066064,1733970644824,-500.0,0.00011099,2]
[345066065,1733970644834,-500.0,0.00011099,2]
[345066066,1733970644843,-500.0,0.00011099,2]
[345066067,1733970644853,-360.07826498,0.00011099,2]
[345066068,1733970644863,-660.55,0.00011099,2]
[345066069,1733970644872,-660.55,0.00011099,2]
[345066070,1733970644882,-660.55,0.00011099,2]
[345066071,1733970644896,-660.55,0.00011099,2]
[345066072,1733970644905,-660.55,0.00011099,2]
[345066073,1733970644915,-660.55,0.00011099,2]
[345066074,1733970644925,-660.55,0.00011099,2]
[345066075,1733970644935,-660.55,0.00011099,2]
[345066076,1733970644945,-660.55,0.00011099,2]
[345066077,1733970644955,-1101.57,0.00011099,2]
[345066078,1733970644973,-998.65,0.00011099,2]
[345066079,1733970644983,-660.55,0.00011099,2]
[345066080,1733970644994,-1101.57,0.00011099,2]
[345066081,1733970645005,-660.55,0.00011099,2]
[345066082,1733970645015,-998.65,0.00011099,2]
[345066083,1733970645024,-1101.57,0.00011099,2]
[345066084,1733970645034,-660.55,0.00011099,2]
[345066085,1733970645043,-998.65,0.00011099,2]
[345066086,1733970645054,-1101.57,0.00011099,2]
[345066087,1733970645064,-660.55,0.00011099,2]
[345066088,1733970645075,-998.65,0.00011099,2]
[345066089,1733970645085,-1101.57,0.00011099,2]
[345066090,1733970645095,-660.55,0.00011099,2]
[345066091,1733970645105,-1101.57,0.00011099,2]
[345066092,1733970645115,-660.55,0.00011099,2]
[345066093,1733970645125,-998.65,0.00011099,2]
[345066094,1733970645136,-1101.57,0.00011099,2]
[345066095,1733970645147,-660.55,0.00011099,2]
[345066096,1733970645158,-998.65,0.00011099,2]
[345066097,1733970645168,-1101.57,0.00011099,2]
[345066098,1733970645179,-660.55,0.00011099,2]
[345066099,1733970645189,-998.65,0.00011099,2]
[345066100,1733970645199,-1101.57,0.00011099,2]
[345066101,1733970645208,-660.55,0.00011099,2]
[345066102,1733970645219,-998.65,0.00011099,2]
[345066103,1733970645229,-1101.57,0.00011099,2]
[345066104,1733970645239,-660.55,0.00011099,2]
[345066105,1733970645249,-998.65,0.00011099,2]
[345066106,1733970645259,-1101.57,0.00011099,2]
[345066107,1733970645268,-660.55,0.00011099,2]
[345066108,1733970645278,-998.65,0.00011099,2]
[345066109,1733970645288,-1101.57,0.00011099,2]
[345066110,1733970645298,-660.55,0.00011099,2]
[345066111,1733970645307,-998.65,0.00011099,2]
[345066112,1733970645318,-1101.57,0.00011099,2]
[345066113,1733970645328,-660.55,0.00011099,2]
[345066114,1733970645338,-1101.57,0.00011099,2]
[345066115,1733970645347,-998.65,0.00011099,2]
[345066116,1733970645357,-660.77742393,0.00011099,2]
[345066117,1733970645367,-1101.57,0.00011099,2]
[345066118,1733970645377,-998.65,0.00011099,2]
[345066119,1733970645387,-998.65,0.00011099,2]
[345066120,1733970645397,-1101.57,0.00011099,2]
[345066121,1733970645407,-1101.57,0.00011099,2]
[345066122,1733970645417,-998.65,0.00011099,2]
[345066123,1733970645428,-1101.57,0.00011099,2]
[345066124,1733970645438,-998.65,0.00011099,2]
[345066125,1733970645448,-1101.57,0.00011099,2]
[345066126,1733970645457,-998.65,0.00011099,2]
[345066127,1733970645467,-1101.57,0.00011099,2]
[345066128,1733970645477,-998.65,0.00011099,2]
[345066129,1733970645487,-1101.57,0.00011099,2]
[345066130,1733970645497,-998.65,0.00011099,2]
[345066131,1733970645507,-1101.57,0.00011099,2]
[345066132,1733970645516,-998.65,0.00011099,2]
[345066133,1733970645527,-1101.57,0.00011099,2]
[345066134,1733970645536,-998.65,0.00011099,2]
[345066135,1733970645546,-1101.58293142,0.00011099,2]
[345066136,1733970645557,-998.74269597,0.00011099,2]
[345066137,1733970645567,-1159.87,0.00011099,2]
[345066138,1733970645576,-1159.87,0.00011099,2]
[345066139,1733970645586,-1159.87,0.00011099,2]
[345066140,1733970645597,-1159.87,0.00011099,2]
[345066141,1733970645607,-1159.87,0.00011099,2]
[345066142,1733970645617,-1159.87,0.00011099,2]
[345066143,1733970645627,-1159.87,0.00011099,2]
[345066144,1733970645637,-1159.87,0.00011099,2]
[345066146,1733970645647,-1159.87,0.00011099,2]
[345066149,1733970645657,-1159.87,0.00011099,2]
[345066151,1733970645667,-1159.87,0.00011099,2]
[345066152,1733970645677,-1159.87,0.00011099,2]
[345066153,1733970645735,-1159.87,0.00011099,2]
[345066154,1733970645745,-1159.87,0.00011099,2]
[345066155,1733970645755,-1159.87,0.00011099,2]
[345066156,1733970645764,-1159.87,0.00011099,2]
[345066157,1733970645774,-1159.87,0.00011099,2]
[345066158,1733970645784,-1159.87,0.00011099,2]
[345066159,1733970645793,-1159.87,0.00011099,2]
[345066160,1733970645803,-1159.87,0.00011099,2]
[345066161,1733970645812,-1159.87,0.00011099,2]
[345066162,1733970645824,-1159.87,0.00011099,2]
[345066163,1733970645833,-1159.98614792,0.00011099,2]
[345066164,1733970645842,-575.72,0.00011099,2]
[345066165,1733970645852,-575.72,0.00011099,2]
[345066166,1733970645861,-575.72,0.00011099,2]
[345066167,1733970645871,-575.72,0.00011099,2]
[345066168,1733970645881,-575.72,0.00011099,2]
[345066169,1733970645896,-575.72,0.00011099,2]
[345066170,1733970645905,-575.72,0.00011099,2]
[345066171,1733970645915,-575.72,0.00011099,2]
[345066172,1733970645925,-575.72,0.00011099,2]
[345066173,1733970645934,-575.72,0.00011099,2]
[345066174,1733970645944,-575.72,0.00011099,2]
[345066175,1733970645954,-575.72,0.00011099,2]
[345066176,1733970645965,-575.72,0.00011099,2]
[345066177,1733970645975,-575.72,0.00011099,2]
[345066178,1733970645985,-575.72,0.00011099,2]
[345066179,1733970645994,-575.72,0.00011099,2]
[345066180,1733970646005,-575.72,0.00011099,2]
[345066181,1733970646015,-575.72,0.00011099,2]
[345066182,1733970646024,-575.72,0.00011099,2]
[345066183,1733970646037,-575.72,0.00011099,2]
[345066184,1733970646047,-575.72,0.00011099,2]
[345066185,1733970646056,-575.72,0.00011099,2]
[345066186,1733970646067,-575.88375137,0.00011099,2]
[345066187,1733970646075,-500.0,0.00011099,2]
[345066188,1733970646085,-438.91293422,0.00011099,2]
[345066189,1733970646094,-500.0,0.00011099,2]
[345066190,1733970646104,-500.0,0.00011099,2]
[345066191,1733970646113,-823.0,0.00011099,2]
[345066192,1733970646123,-2531686.45853372,0.000111,2]
[345066193,1733970646132,-771229.75195681,0.000111,2]
[345066194,1733970646142,-1000.0,0.000111,2]
[345066195,1733970646152,-1000.0,0.000111,2]
[345066196,1733970646161,-1000.0,0.000111,2]
[345066197,1733970646171,-1000.0,0.000111,2]
[345066198,1733970646180,-1000.0,0.000111,2]
[345066199,1733970646189,-1000.0,0.000111,2]
[345066200,1733970646199,-1000.0,0.000111,2]
[345066201,1733970646208,-1000.0,0.000111,2]
[345066202,1733970646218,-1000.0,0.000111,2]
[345066203,1733970646228,-1000.0,0.000111,2]
[345066204,1733970646237,-1000.0,0.000111,2]
[345066205,1733970646247,-1000.0,0.000111,2]
[345066206,1733970646257,-1000.0,0.000111,2]
[345066207,1733970646266,-1000.0,0.000111,2]
[345066208,1733970646275,-1000.0,0.000111,2]
[345066209,1733970646284,-1000.0,0.000111,2]
[345066210,1733970646293,-1000.0,0.000111,2]
[345066211,1733970646303,-1000.0,0.000111,2]
[345066212,1733970646313,-1000.0,0.000111,2]
[345066213,1733970646324,-1000.0,0.000111,2]
[345066214,1733970646334,-1000.0,0.000111,2]
[345066215,1733970646343,-1000.0,0.000111,2]
[345066216,1733970646354,-1000.0,0.000111,2]
[345066217,1733970646363,-1000.0,0.000111,2]
[345066218,1733970646372,-1000.0,0.000111,2]
[345066219,1733970646381,-1000.0,0.000111,2]
[345066220,1733970646390,-1000.0,0.000111,2]
[345066221,1733970646399,-1000.0,0.000111,2]
[345066222,1733970646409,-1000.0,0.000111,2]
[345066223,1733970646419,-1000.0,0.000111,2]
[345066224,1733970646429,-1000.0,0.000111,2]
[345066225,1733970646438,-1000.0,0.000111,2]
[345066226,1733970646448,-1000.0,0.000111,2]
[345066227,1733970646457,-1000.0,0.000111,2]
[345066228,1733970646467,-167.35908301,0.000111,2]
[345066229,1733970646477,-3279990.92823577,0.000111,2]
[345066230,1733970646837,-500.0,0.00011099,2]
[345066231,1733970646847,-500.0,0.00011099,2]
[345066232,1733970646857,-500.0,0.00011099,2]
[345066233,1733970646867,-500.0,0.00011099,2]
[345066234,1733970646877,-500.0,0.00011099,2]
[345066235,1733970646891,-500.0,0.00011099,2]
[345066236,1733970646903,-500.0,0.00011099,2]
[345066237,1733970646912,-3406892.04757176,0.000111,2]
[345066238,1733970646932,-9096.64373114,0.000111,2]
[345066239,1733970646943,-8947.21879473,0.000111,2]
[345066240,1733970646955,-8943.78386462,0.000111,2]
[345066241,1733970646967,-9077.54866152,0.000111,2]
[345066242,1733970646980,-8943.84023489,0.000111,2]
[345066243,1733970647007,-500.0,0.00011099,2]
[345066244,1733970647019,-507.65,0.000111,2]
[345066245,1733970647031,-572.45,0.000111,2]
[345066246,1733970647042,-553.12399616,0.000111,2]
[345066247,1733970647054,-399.7100002,0.000111,2]
[345066248,1733970647189,-314.61737173,0.00010958,2]
[345066249,1733970647199,-500.0,0.00011099,2]
[345066250,1733970647208,-166.85207825,0.00011099,2]
[345066251,1733970647219,-333.14792175,0.00011099,2]
[345066252,1733970647230,-500.0,0.00011099,2]
[345066253,1733970647239,-462.13073027,0.00011099,2]
[345066254,1733970647442,-500.0,0.00010958,2]
[345066255,1733970647452,-500.0,0.00010958,2]
[345066256,1733970647462,-289.99569035,0.00010958,2]
[345066257,1733970647472,-37.86926973,0.00011099,2]
[345066258,1733970647481,-500.0,0.00011099,2]
[345066259,1733970647491,-500.0,0.00011099,2]
[345066260,1733970647500,-603.41024178,0.00011099,2]
[345066261,1733970647510,-270.44533496,0.000111,2]
[345066262,1733970647530,-500.0,0.00011098,2]
[345066263,1733970647540,-153866.72611909,0.000111,2]
[345066264,1733970647550,-40438.87144293,0.000111,2]
[345066265,1733970647578,-633.72,0.00011071,2]
[345066266,1733970647588,-2087.67998674,0.000111,2]
[345066267,1733970750419,-1835.617739,9.948e-05,2]
[345066268,1733970750442,-500.0,9.999e-05,2]
[345066269,1733970750464,-1806.50669734,0.0001,2]
[345066270,1733970750487,-996.83,0.0001,2]
[345066271,1733970750509,-1000.38,0.0001,2]
[345066272,1733970750532,-500.0,0.00010136,2]
[345066273,1733970750554,-171.97,0.00010155,2]
[345066274,1733970750576,-500.0,0.00010273,2]
[345066275,1733970750598,-500.0,0.0001041,2]
[345066276,1733970750620,-9215.81244511,0.00010464,2]
[345066277,1733970801737,151.04,8.157e-05,2]
[345066278,1733971170541,960.14,8.219e-05,2]
[345066280,1733971305301,197.0,0.0002,120]
[345066281,1733971425253,1000.0,0.0002,120]
[345066282,1733971445997,150.0,9.603e-05,2]
[345066284,1733971828563,250.0,9.557e-05,2]
[345066285,1733971829937,276.0,9.597e-05,2]
[345066294,1733971832032,-1792.7311311,9.617e-05,2]
[345066295,1733971832273,-932.1788689,9.617e-05,2]
[345066297,1733971832283,-250.0,9.779e-05,2]
[345066300,1733971832294,-3924.38623036,9.812e-05,2]
[345066304,1733971837756,-1780.46376964,9.812e-05,2]
[345066305,1733971837766,-1115.03209783,9.841e-05,2]
[345066306,1733971837778,-13559.14790217,9.841e-05,2]
[345066308,1733971837787,-330.17,9.863e-05,2]
[345066309,1733971837797,-29.70178853,9.942e-05,2]
[345066310,1733971837983,-3020.3598803,9.942e-05,2]
[345066311,1733971837995,-1778.51833117,9.942e-05,2]
[345066312,1733971838005,-221.24,9.954e-05,2]
[345066313,1733971838014,-1000.0,9.98e-05,2]
[345066314,1733971838024,-150.99346435,9.986e-05,2]
[345066315,1733971838033,-680.68,9.988e-05,2]
[345066316,1733971838042,-200.0,0.00010057,2]
[345066317,1733971838052,-1035.31,0.00010079,2]
[345066318,1733971838061,-500.0,0.00010098,2]
[345066319,1733971838071,-150.0,0.0001011,2]
[345066320,1733971838080,-155.63,0.00010137,2]
[345066321,1733971838089,-67.62820448,0.00010172,2]
[345066322,1733971838100,-182.37179552,0.00010172,2]
[345066323,1733971838110,-555.37,0.00010172,2]
[345066324,1733971838119,-330.17,0.00010228,2]
[345066325,1733971838128,-356.08490378,0.00010477,2]
[345066327,1733971839859,-604.05509622,0.00010477,2]
[345066328,1733971839869,-330.17,0.00010593,2]
[345066329,1733971839878,-150.0,0.00010769,2]
[345066330,1733971839888,-2623.53602293,0.0001077,2]
[345066333,1733971839900,-4638.52953212,0.0001077,2]
[345066334,1733971839912,-2521.54823,0.0001077,2]
[345066335,1733971839923,-2484.435,0.0001077,2]
[345066336,1733971840098,-483.48940392,0.0001077,2]
[345066350,1733971843002,-965.1629,0.00010858,2]
[345066351,1733971843011,-908.0995,0.00010858,2]
[345066352,1733971843021,-151.079462,0.00010878,2]
[345066353,1733971843030,-11784.69683437,0.000109,2]
[345066354,1733971843041,-6637.49245128,0.000109,2]
[345066355,1733971843282,-3480.88651807,0.000109,2]
[345066356,1733971843294,-2525.25193002,0.000109,2]
[345066358,1733971845843,-9687.4946683,0.000109,2]
[345066362,1733971846069,-9752.2,0.000109,2]
[345066363,1733971848763,-1000.0,0.000109,2]
[345066364,1733971848775,-714.65,0.000109,2]
[345066365,1733971848786,-286.87702,0.000109,2]
[345066366,1733971864081,500.0,8.22e-05,2]
[345066368,1733972045041,1302.85,8.219e-05,2]
[345066369,1733972095699,174.59,7.994e-05,2]
[345066373,1733972341310,175.72,7.986e-05,2]
[345066374,1733972618869,200.37373426,7.946e-05,2]
[345066376,1733972767409,250.0,9.572e-05,2]
[345066379,1733972814939,250.0,9.545e-05,2]
[345066384,1733972973353,1270.09,8.219e-05,2]
[345066385,1733972986794,200.0,9.537e-05,2]
[345066402,1733973032204,-818.45,9.615e-05,2]
[345066403,1733973032214,-250.0,9.802e-05,2]
[345066404,1733973032224,-670.55,9.838e-05,2]
[345066405,1733973032427,-451.72001,9.838e-05,2]
[345066406,1733973032438,-648.6250025,9.838e-05,2]
[345066407,1733973032450,-985.44299838,9.838e-05,2]
[345066434,1733973037985,-768.27858851,9.838e-05,2]
[345066440,1733973038240,-10583.81340061,9.838e-05,2]
[345066441,1733973038249,-371.15,9.841e-05,2]
[345066442,1733973038259,-168.83,9.863e-05,2]
[345066443,1733973038268,-1000.0,9.884e-05,2]
[345066444,1733973038277,-768.19,9.911e-05,2]
[345066445,1733973038290,-23900.0,9.936e-05,2]
[345066446,1733973038299,-1500.0,9.967e-05,2]
[345066447,1733973038310,-730.63,9.967e-05,2]
[345066448,1733973038320,-500.0,9.972e-05,2]
[345066449,1733973038329,-1100.0,9.972e-05,2]
[345066450,1733973038340,-938.97,0.0001005,2]
[345066451,1733973038350,-326.8,0.0001005,2]
[345066452,1733973038360,-533.17,0.00010126,2]
[345066453,1733973038369,-365.39,0.00010137,2]
[345066454,1733973038379,-176.74,0.0001019,2]
[345066455,1733973038388,-277.17,0.0001019,2]
[345066456,1733973038398,-168.83,0.00010228,2]
[345066457,1733973038407,-449.64,0.00010411,2]
[345066458,1733973038416,-1270.09,0.00010453,2]
[345066459,1733973038426,-150.0,0.00010476,2]
[345066460,1733973038435,-419.912,0.0001055,2]
[345066461,1733973038445,-168.83,0.00010593,2]
[345066462,1733973038454,-1004.0,0.000106,2]
[345066463,1733973038464,-153.0,0.00010741,2]
[345066464,1733973038474,-153.0,0.00010741,2]
[345066465,1733973038483,-153.0,0.00010741,2]
[345066466,1733973038493,-153.0,0.00010741,2]
[345066467,1733973038502,-2893.07464,0.0001079,2]
[345066468,1733973038511,-233.7850829,0.00010798,2]
[345066469,1733973038520,-2500.0,0.00010799,2]
[345066470,1733973038545,-2500.0,0.000108,2]
[345066471,1733973038554,-40.49670266,0.000108,2]
[345066472,1733973038567,-269.92799734,0.000108,2]
[345066473,1733973038576,-931.77250276,0.0001081,2]
[345066474,1733973038587,-1852.72711687,0.0001081,2]
[345066475,1733973038619,-127215.50038037,0.0001081,2]
[345066476,1733973038630,-54048.5302,0.00010858,2]
[345066477,1733973038640,-1001.19,0.00010899,2]
[345066478,1733973038650,-93046.14837011,0.000109,2]
[345066479,1733973038660,-2536.743457,0.000109,2]
[345066480,1733973038670,-1000.0,0.000109,2]
[345066481,1733973038679,-195.64783167,0.000109,2]
[345066484,1733973038689,-358.40503092,0.00010934,2]
[345066486,1733973038701,-150.727,0.00010947,2]
[345066487,1733973038711,-3895.584,0.00010947,2]
[345066490,1733973038721,-1170.174,0.00010947,2]
[345066491,1733973038730,-13728.0,0.00010947,2]
[345066493,1733973038740,-248.942,0.00010947,2]
[345066495,1733973038749,-185.0,0.00010956,2]
[345066497,1733973038759,-168.83,0.00010958,2]
[345066499,1733973038768,-168.660143,0.00010958,2]
[345066501,1733973038778,-158.472376,0.00010958,2]
[345066503,1733973038788,-168.660143,0.00010958,2]
[345066505,1733973038798,-158.472376,0.00010958,2]
[345066507,1733973038807,-168.660143,0.00010958,2]
[345066509,1733973038817,-158.472376,0.00010958,2]
[345066511,1733973038826,-168.660143,0.00010958,2]
[345066513,1733973038835,-158.472376,0.00010958,2]
[345066515,1733973038844,-158.472376,0.00010958,2]
[345066517,1733973038854,-158.472376,0.00010958,2]
[345066519,1733973038864,-168.660143,0.00010958,2]
[345066521,1733973038873,-168.660143,0.00010958,2]
[345066523,1733973038883,-158.472377,0.00010958,2]
[345066525,1733973038892,-158.472377,0.00010958,2]
[345066527,1733973038901,-500.0,0.00010958,2]
[345066529,1733973038910,-504.4189002,0.00010958,2]
[345066531,1733973038919,-500.0,0.00010958,2]
[345066532,1733973038928,-158.472376,0.00010958,2]
[345066533,1733973038938,-500.0,0.00010958,2]
[345066534,1733973038948,-500.0,0.00010958,2]
[345066535,1733973038958,-500.0,0.00010958,2]
[345066536,1733973038968,-500.0,0.00010958,2]
[345066537,1733973038979,-500.0,0.00010958,2]
[345066538,1733973038988,-500.0,0.00010958,2]
[345066539,1733973038998,-500.0,0.00010958,2]
[345066540,1733973039008,-500.0,0.00010958,2]
[345066541,1733973039017,-500.0,0.00010958,2]
[345066542,1733973039027,-500.0,0.00010958,2]
[345066543,1733973039056,-500.0,0.00010958,2]
[345066544,1733973039066,-500.0,0.00010958,2]
[345066545,1733973039075,-500.0,0.00010958,2]
[345066546,1733973039327,-500.0,0.00010958,2]
[345066547,1733973039337,-500.0,0.00010958,2]
[345066548,1733973039347,-501.96535852,0.00010958,2]
[345066549,1733973039356,-500.69443228,0.00010958,2]
[345066550,1733973039365,-500.60601317,0.00010958,2]
[345066551,1733973039374,-500.0,0.00010958,2]
[345066552,1733973039383,-500.0,0.00010958,2]
[345066553,1733973039392,-168.660142,0.00010958,2]
[345066554,1733973039401,-168.660142,0.00010958,2]
[345066555,1733973039411,-531.11210084,0.00010958,2]
[345066556,1733973039420,-502.16811245,0.00010958,2]
[345066557,1733973039429,-428.9669019,0.00010958,2]
[345066558,1733973039438,-500.0,0.00010958,2]
[345066559,1733973039447,-500.0,0.00010958,2]
[345066560,1733973039456,-158.472376,0.00010958,2]
[345066561,1733973039465,-158.472376,0.00010958,2]
[345066562,1733973039475,-158.472376,0.00010958,2]
[345066563,1733973039485,-629.06194873,0.00010958,2]
[345066564,1733973039494,-501.7794848,0.00010958,2]
[345066565,1733973039503,-500.0,0.00010958,2]
[345066566,1733973039513,-500.3083874,0.00010958,2]
[345066567,1733973039523,-500.0,0.00010958,2]
[345066568,1733973039532,-503.98426988,0.00010958,2]
[345066569,1733973039542,-500.0,0.00010958,2]
[345066570,1733973039569,-500.0,0.00010958,2]
[345066571,1733973039579,-500.0,0.00010958,2]